Cogmind - Beta 13 @@@ ROGUE MODE // 2024.07.12 @ 19:58:15 Player: APerTAS Result: Destroyed by IR-IO8(R) with Subdweller Laser Performance ------------- Evolutions (0) 0 Regions Visited (3) 600 Robots Destroyed (22) 110 Value Destroyed (617) 617 Prototype IDs (0) 0 Alien Tech Used (0) 0 Bonus (60) 60 TOTAL SCORE: 1387 Bonus ------- Follower Combat Kills 60 Cogmind --------- Core Integrity 0/250 Matter 244/300 Energy 100/100 System Corruption 0% Temperature Cool (6) Movement Core (800) Ox15 Location -10/Subcaves Parts ------- > --- POWER (1) -------- Subdweller Power Source > --- PROPULSION (2) --- (None) > --- UTILITY (2) ------ High-capacity Storage Unit Signal Interpreter > --- WEAPON (2) ------- Assault Rifle > --- INVENTORY (20) --- Ion Engine Subdweller Power Source Carbon-fiber Leg Small Storage Unit Huge Storage Unit High-capacity Matter Pod (200) Structural Scanner Terrain Scanner Improved Terrain Scanner ECM Suite Light Armor Plating EM Pulse Gun Light Assault Rifle Grenade Launcher Mining Laser Scrap Shield Fragment (29) Peak State ------------ > --- POWER ------------ Subdweller Power Source > --- PROPULSION ------- Light Treads Spiked Treads > --- UTILITY ---------- High-capacity Storage Unit Signal Interpreter > --- WEAPON ----------- Beamcaster Battle Cannon > --- INVENTORY -------- Ion Engine Light Treads Carbon-fiber Leg Small Storage Unit Huge Storage Unit High-capacity Matter Pod Structural Scanner Terrain Scanner Improved Terrain Scanner ECM Suite Light Armor Plating EM Pulse Gun Assault Rifle Light Assault Rifle Grenade Launcher Mining Laser Scrap Shield Fragment [Rating: 16] Favorites ----------- Power Ion Engine Engine Ion Engine Propulsion Light Treads Treads Light Treads Utility High-capacity Storage Unit Device ECM Suite Storage High-capacity Storage Unit Processor Signal Interpreter Protection Light Armor Plating Weapon Beamcaster Energy Gun Beamcaster Ballistic Gun Assault Rifle Ballistic Cannon Battle Cannon Launcher Grenade Launcher Special Weapon Mining Laser Build | -11 -10 -10 -10 ------- Run | Yrd Mat Min Sub Slots Evolved . | . . . . Power . | . . . . Propulsion . | . . . . Utility . | . . . . Weapon . | . . . . Parts Attached 30 | 6 6 6 12 Power 6 | 1 . 1 4 Engine 6 | 1 . 1 4 Core . | . . . . Reactor . | . . . . Propulsion 4 | 2 . . 2 Treads 4 | 2 . . 2 Leg . | . . . . Wheel . | . . . . Hover . | . . . . Flight . | . . . . Utility 7 | 1 5 1 . Device 1 | . 1 . . Storage 4 | 1 3 . . Processor 1 | . . 1 . Hackware . | . . . . Protection 1 | . 1 . . Artifact . | . . . . Weapon 13 | 2 1 4 6 Energy Gun 1 | . . 1 . Energy Cannon . | . . . . Ballistic Gun 5 | 2 . 1 2 Ballistic Cannon 2 | . . . 2 Launcher 2 | . 1 . 1 Special Weapon 3 | . . 2 1 Impact Weapon . | . . . . Slashing Weapon . | . . . . Piercing Weapon . | . . . . Special Melee Weapon . | . . . . Unidentified Prototypes . | . . . . Parts Lost 6 | . . . 6 Power . | . . . . Propulsion 3 | . . . 3 Utility . | . . . . Weapon 3 | . . . 3 Highest Loss Streak 4 | . . . 4 To Critical Strikes . | . . . . Average Slot Usage (%) 97 | . 85 100 98 Engine 14 | . 14 14 14 Treads 26 | . 28 28 26 Storage 14 | . 14 14 14 Processor 10 | . . 5 14 Protection 2 | . . 8 . Energy Gun 9 | . . 1 13 Ballistic Gun 6 | . 15 18 . Ballistic Cannon 7 | . . . 10 Launcher 4 | . 12 5 2 Naked Turns . | . . . . Heaviest Build 53 | 13 53 53 53 Greatest Support 40 | 40 40 40 40 Greatest Overweight (x) 2 | . 1 1 2 Average Overweight (x) . | . . 1 1 Largest Inventory Capacity 25 | 8 25 20 20 Average Capacity 18 | 6 8 20 20 Most Carried 18 | 3 7 14 18 Average Carried 13 | . 3 10 16 Final Capacity 20 | 8 20 20 20 Final Carried 16 | 1 7 14 16 Class Distribution -------------------- 50% | Mutant 49% | Derelict-Mutant Dominant Class ---------------- Mutant | -10/Materials Mutant | -10/Mines Derelict-Mutant | -10/Subcaves Resources | -11 -10 -10 -10 ----------- Run | Yrd Mat Min Sub Matter Collected 1146 | 227 18 358 543 Remotely . | . . . . Salvage Created 478 | . 114 32 332 Parts 35 | . 13 3 19 Haulers Intercepted . | . . . . Recyclers Shooed 1 | . 1 . . Parts Field Recycled . | . . . . Retrieved Matter . | . . . . Parts Self-Destructed 14 | . . . 14 Prevented . | . . . . Kills | -11 -10 -10 -10 ------- Run | Yrd Mat Min Sub Combat Hostiles Destroyed 19 | . 4 4 11 Guns 4 | . . 2 2 Cannons 7 | . . 2 5 AOE 8 | . 4 . 4 Classes Destroyed 9 | . 4 2 3 Worker 1 | . 1 . . Builder 1 | . 1 . . Turret 2 | . . . 2 Watcher 1 | . 1 . . Swarmer 5 | . . 2 3 Grunt 6 | . 4 . 2 Sentry 1 | . . . 1 Subdweller 5 | . . . 5 Assembled 2 | . . 2 . Best Kill Streak 5 | . 4 2 5 Combat Bots Only 3 | . 2 2 3 Max Kills in Single Turn 2 | . 2 1 1 Gunslinging . | . . . . Exploded 1 | . 1 . 1 Melee . | . . . . Uniques/NPCs Destroyed . | . . . . Combat | -11 -10 -10 -10 -------- Run | Yrd Mat Min Sub Hostile Shots Fired 117 | . 13 21 83 Missed 43 | . 7 4 32 Damage Taken 1232 | . 143 217 872 Core 267 | . 27 75 165 Absorbed by Shields . | . . . . Core Remaining (%) 100 | 100 . . . Volleys Fired 130 | . 13 49 68 Largest 2 | . 2 2 2 Hottest 175 | . 50 120 175 Shots Fired 216 | . 23 62 131 Gun 109 | . 13 28 68 Cannon 54 | . . . 54 Launcher 17 | . 10 . 7 Special 36 | . . 34 2 Kinetic 94 | . 13 20 61 Thermal 105 | . . 42 63 Explosive 17 | . 10 . 7 Electromagnetic . | . . . . Robot Hit Streak 8 | . 7 7 8 Robot Miss Streak 5 | . 5 2 2 Penetration Max . | . . . . Secondary Targets . | . . . . Shots Hit Robots 77 | . 14 15 48 Core Hits 40 | . 15 7 18 Critical Kills . | . . . . Critical Parts Destroyed . | . . . . Critical Strikes 6 | . . . 6 Burn 2 | . . . 2 Blast 4 | . . . 4 Melee Attacks . | . . . . Impact . | . . . . Slashing . | . . . . Piercing . | . . . . Sneak Attacks . | . . . . Combat Hostiles . | . . . . Follow-up Attacks . | . . . . Damage Inflicted 1882 | . 673 199 1010 Guns 612 | . 89 127 396 Cannons 388 | . . . 388 Explosions 809 | . 583 . 226 Melee . | . . . . Ramming 1 | . 1 . . Kinetic 682 | . 89 127 466 Thermal 412 | . 22 72 318 Explosive 787 | . 561 . 226 Electromagnetic . | . . . . Impact . | . . . . Slashing . | . . . . Piercing . | . . . . Highest Corruption . | . . . . Average Corruption . | . . . . Corruption Purged . | . . . . Corruption Blocked . | . . . . Overload Shots . | . . . . Overflow Damage 3 | . 3 . . Projectiles . | . . . . Explosions 3 | . 3 . . Melee . | . . . . Knockbacks 3 | . . . 3 Impact . | . . . . Kinetic 3 | . . . 3 Secondary . | . . . . Self-Inflicted Damage 93 | . 71 . 22 Shots 5 | . 3 . 2 Rammed 1 | . 1 . . Targets Rammed 1 | . 1 . . Kicked . | . . . . Crushed . | . . . . Highest Temperature 244 | . 23 207 244 Average Temperature 55 | . 9 60 40 Received Heat Transfer 634 | . 60 15 559 Siege Activations . | . . . . Robots Corrupted . | . . . . Combat Hostiles . | . . . . Parts Fried . | . . . . Impact Corruptions . | . . . . Robots Melted . | . . . . Combat Hostiles . | . . . . Parts Melted 1 | . . . 1 Heat Transferred 903 | . 50 150 703 Parts Sabotaged . | . . . . Parts Stolen . | . . . . Parts Stripped . | . . . . Power Chain Reactions . | . . . . Alert | -11 -10 -10 -10 ------- Run | Yrd Mat Min Sub Peak Influence 137 | . 137 54 . Initial 43 | . . 43 . Average 31 | . 61 21 . Maximum Alert Level . | . . . . Low Security (%) 100 | 100 100 100 . Level 1 . | . . . . Level 2 . | . . . . Level 3 . | . . . . Level 4 . | . . . . Level 5 . | . . . . High Security . | . . . . Max Security . | . . . . Squads Dispatched . | . . . . Investigation . | . . . . Extermination . | . . . . Reinforcement . | . . . . Assault . | . . . . Garrison . | . . . . Intercept . | . . . . Searches Triggered . | . . . . Construction Impeded . | . . . . Haulers Reinforced . | . . . . Active Scanning Responses . | . . . . Cargo Convoy Interrupts . | . . . . Stealth | -11 -10 -10 -10 --------- Run | Yrd Mat Min Sub Distress Signals 1 | . 1 . . Communications Jammed . | . . . . Distress Signals . | . . . . Times Spotted 72 | . 8 7 57 Peak Tracking Total 5 | . 4 3 5 Tactical Retreats 5 | . . 1 4 Traps | -11 -10 -10 -10 ------- Run | Yrd Mat Min Sub Traps Triggered . | . . . . Indirectly . | . . . . Trap Hack Attempts . | . . . . Triggered . | . . . . Disarmed . | . . . . Reprogrammed 1 | . 1 . . Reused . | . . . . Traps Extracted . | . . . . Installed . | . . . . Triggered . | . . . . Machines | -11 -10 -10 -10 ---------- Run | Yrd Mat Min Sub Machines Disabled 2 | . 1 . 1 Max in Single Turn 1 | . 1 . 1 Machines Repaired . | . . . . Machines Dismantled . | . . . . Machines Sabotaged . | . . . . Overloaded Fab Kills . | . . . . Hacking | -11 -10 -10 -10 --------- Run | Yrd Mat Min Sub Machines Accessed 5 | . 5 . . Terminals 4 | . 4 . . Fabricators . | . . . . Repair Stations . | . . . . Recycling Units 1 | . 1 . . Scanalyzers . | . . . . Garrison Access . | . . . . Total Hacks 11 | . 11 . . Successful 6 | . 6 . . Failed 5 | . 5 . . Catastrophic 1 | . 1 . . Database Lockouts . | . . . . Manual 2 | . 2 . . Terminals 9 | . 9 . . Fabricators . | . . . . Repair Stations . | . . . . Recycling Units 2 | . 2 . . Scanalyzers . | . . . . Garrison Access . | . . . . Terminal Hacks 5 | . 5 . . Robot Analysis 1 | . 1 . . Alert Level 1 | . 1 . . Reprogram Traps 1 | . 1 . . Reinforcement Status 1 | . 1 . . Zone Layout 1 | . 1 . . Fabricator Hacks . | . . . . Repair Station Hacks . | . . . . Recycling Unit Hacks . | . . . . Scanalyzer . | . . . . Garrison Access Hacks . | . . . . Unauthorized Hacks 1 | . 1 . . Terminals . | . . . . Fabricators . | . . . . Repair Stations . | . . . . Recycling Units 1 | . 1 . . Reject 1 | . 1 . . Scanalyzers . | . . . . Garrison Access . | . . . . Data Cores Recovered . | . . . . Used . | . . . . Hacking Detections 5 | . 5 . . Full Trace Events 2 | . 2 . . Feedback Events . | . . . . Feedback Blocked . | . . . . Robot Schematics Acquired . | . . . . Robots Built . | . . . . Authchips . | . . . . Time . | . . . . Total Robot Build Rating . | . . . . Part Schematics Acquired . | . . . . Parts Built . | . . . . Authchips . | . . . . Time . | . . . . Total Part Build Rating . | . . . . Parts Repaired . | . . . . Time . | . . . . Parts Recycled . | . . . . Recycled Matter . | . . . . Retrieved Matter . | . . . . Retrieved Components . | . . . . Parts Scanalyzed . | . . . . Part Schematics Acquired . | . . . . Parts Damaged . | . . . . Bothacking | -11 -10 -10 -10 ------------ Run | Yrd Mat Min Sub Used RIF Installer . | . . . . Robots Hacked . | . . . . Non-combat . | . . . . Combat . | . . . . Robot Hacks Applied . | . . . . Relay Couplers Released . | . . . . Fabnet Peak Effective % . | . . . . Robots Rewired . | . . . . Allies Hacked . | . . . . Hacks Repelled . | . . . . Allies | -11 -10 -10 -10 -------- Run | Yrd Mat Min Sub Total Allies 1 | . . 1 . Largest Group 1 | . . 1 . Highest-Rated Group 31 | . . 31 . Highest-Rated Ally 31 | . . 31 . Total Orders . | . . . . Ally Attacks 14 | . . 14 . Total Damage 230 | . . 230 . Kills 2 | . . 2 . Allies Corrupted . | . . . . Allies Melted . | . . . . Intel | -11 -10 -10 -10 ------- Run | Yrd Mat Min Sub Robot Analysis Total 1 | . 1 . . Derelict Logs Recovered 2 | . . 1 1 Drone Launches . | . . . . Drone Recoveries . | . . . . Exploration | -11 -10 -10 -10 ------------- Run | Yrd Mat Min Sub Turns Passed 5306 | 85 542 1299 3380 Spaces Moved 2032 | 49 300 453 1230 Core 5 | 5 . . . Treads 2027 | 44 300 453 1230 Legs . | . . . . Wheels . | . . . . Hover . | . . . . Flight . | . . . . Fastest Speed 50 | 50 160 240 240 Average Speed 236 | 148 163 240 256 Slowest Speed 360 | 160 240 240 360 Overloaded Moves . | . . . . Propulsion Burnouts . | . . . . Robots Hopped . | . . . . Cave-ins Triggered . | . . . . Exploration Rate (%) 50 | 4 60 66 72 Regions Visited 3 Branch Regions 2 Pre-discovered Areas 1 | . . 1 . Known Exits Taken 1 | . . 1 . Unknown Exits Taken 2 | 1 1 . . Scrap Searched 7 | . . 2 5 Spaces Dug . | . . . . Terrain Destroyed 100 | . 67 4 29 Melee . | . . . . Projectile 5 | . . 4 1 AOE 95 | . 67 . 28 Terrain Rammed . | . . . . Walls Destroyed . | . . . . Machines Disabled . | . . . . Actions | -11 -10 -10 -10 --------- Run | Yrd Mat Min Sub Total 2242 | 61 327 535 1319 Wait 21 | . . 21 . Move 2029 | 48 299 452 1230 Hop . | . . . . Pick Up 28 | 7 7 7 7 Fast Attach . | . . . . Attach 12 | 6 2 . 4 Detach 1 | . 1 . . Swap 18 | . 4 6 8 Drop 2 | . . . 2 Fire 130 | . 13 49 68 Melee . | . . . . Ram . | . . . . Kick . | . . . . Crush 1 | . 1 . . Escape Stasis . | . . . . Rewire . | . . . . Trap . | . . . . Miscellaneous . | . . . . Route ------- -11/Scrapyard -10/Materials (discovered 2 exits: *Mat / [*Min]) -10/Mines (discovered 2 exits: *Mat / *Sub) -10/Subcaves (discovered 1 exit: *Rec) History --------- Turn | Location | Event 47 | -11/Scrapyard | Discovered new exit (range 16) 86 | -11/Scrapyard | Entered Materials 316 | -10/Materials | Build established: Mutant 382 | -10/Materials | Discovered new exit (range 19) 382 | -10/Materials | Discovered new exit (range 17) 628 | -10/Materials | Entered Mines 648 | -10/Mines | Met a Derelict bent on vengeance 926 | -10/Mines | Learned location of 1 exit from Materials 1117 | -10/Mines | Excavation squad dispatched 1117 | -10/Mines | A large section of the Mines collapsed 1365 | -10/Mines | Discovered new exit (range 5) 1374 | -10/Mines | Escorted by a lone wolf Derelict 1393 | -10/Mines | Identified exit to Materials 1396 | -10/Mines | Learned location of Storage (-7) 1918 | -10/Mines | Discovered new exit (range 3) 1922 | -10/Mines | Identified exit to Subcaves 1927 | -10/Mines | Entered Subcaves 1927 | -10/Subcaves | Learned Materials terminal intel 1979 | -10/Subcaves | Core integrity fell below 50% 2698 | -10/Subcaves | Shifting Twisted Machinery released Sub. Laser 2869 | -10/Subcaves | A swath of the cavern ceiling suddenly collapsed 2980 | -10/Subcaves | Build established: Derelict-Mutant 3573 | -10/Subcaves | A swath of the cavern ceiling suddenly collapsed 4882 | -10/Subcaves | Discovered new exit (range 13) 4908 | -10/Subcaves | Core integrity fell below 20% 5068 | -10/Subcaves | Identified exit to Recycling 5307 | -10/Subcaves | Destroyed by IR-IO8(R) with Subdweller Laser Last Messages --------------- Acquired 16 matter. Lgt. Assault Rifle fries itself beyond repair. Machine disabled. Lgt. Treads destroyed. Autobeam Turret suffers critical hit (Blast). Autobeam Turret destroyed. Acquired 12 matter. Acquired 47 matter. Acquired 31 matter. Acquired 28 matter. EXIT=IDENTIFIED: RECYCLING Acquired Battle Rifle. Sub. Power Source shoots sparks and powers down. Critical hit (Meltdown: +280). Beamcaster destroyed. 2W-8X4(R) Sub. Power Source blasted off. Battle Cannon destroyed. Spk. Treads destroyed. Subatomizers dissect the Sub. Power Source. Battle Rifle destroyed. Map ----- +----------------------------------------------------+ | ### ### ####????#### [ | | ### ### #???????## """ | | ###?# ## #?##### #????????## ##""" | | #???## #?###?????# ##????????###?##"" | | ?????# #######????# #?????????????##" | | ???### ## ####?# ##??????????????## | | ???# ### ## #?## ####????????????????? | | ???# #?# ### ##??????????????????? | | ??## ### ##?????????????????? | | #?# #?????????????????? | | ### ## #?????????????????? | | ## ##?????????????????? | | ######### ## # ####??????????????????? | | #???????## ##### #?????????????????????? | | #????????# #??## #?????????????????????? | | # #????????## #???###???????????# ????????? | | # #?????????# ##????????????????? ???????? | | #?????????# #??????????#####???# ???????? | | ? #?????????# #?????????? # #??? ???????? | | ??? #?????????## #???###???? ????# ???????? | | ???? ??????????# ##???# ##??? ?????# #??????? | | ????? ?????????###????# #??? ?????? ##?????? | | ?????? #???????????????# ??? #??????? #????## | | ????????????????????????# ### #??????? ""#####> | | ???????????????????????## ## #???????# "##"" "% | | ???????????????????????# @;# #???????##""##" " | | ???????????????????????## ##??????#"" ##" | | ????????????????????????# RR% ##?###?#"" ## % | | ??????????? ?????????####* ## "#?## ### | | ?????????? ????### # ###" ###" | | ???????????# # ####"# ####&% | | ??????????????????# ##?#" &###%% | | ??????????????????# # ## "#### &!# & | | ??????????????????## ######## #### & &! " | | ???????????????????### ???????## ### # ### | | ?????????????????????# ????????#" ""## ####?# | | ?????????????????????## ????????#" ## #????## | | ??????????????????????# ????????### #?????# | | ?????????????????????? ??????????## ##????# | | ????????????????????? ###????????????## #????? | | ???????????????????? ????????????????#######????? | | ?????????????????????????????????????????????????? | | ?????????????????????????????????????????????????? | | ?????????????????????????????????????????????????? | | ?????????????????????????????????????????????????? | | ?????????????????????????????????????????????????? | | ?????????????????????????????????????????????????? | | ?????????????????????????????????????????????????? | | ?????????????????????????????????????????????????? | | ?????????????????????????????????????????????????? | +----------------------------------------------------+ Best States ------------- Heat Dissipation 25 Energy Generation 15 Energy Capacity 250 Matter Stores 300 Matter Capacity 300 Sight Range 16 Terrain Scan Density 10 ECM Strength 1 Armor Coverage 150 Evasion (%) 40 Recoil Reduction 2 Item Schematics ----------------- None Robot Schematics ------------------ None Fabricated ------------ Nothing Alien Tech Used ----------------- None Achievements -------------- None Challenges ------------ None Game ------ Seed ElectronBlastStorm Manual? 0 Play Time 00:26:31 Cumulative 8.9 hours Start 2024.07.12 @ 19:32:42 End 2024.07.12 @ 19:58:15 Sessions 1 Manual Loads 0 Difficulty Rogue Special Mode None Game No. 24 Rogue 24 Adventurer 0 Explorer 0 Win Type - Total 0 Types 0/0/0/0/0/0/0/0/0 Lore% 15 Gallery% 12 Achievement% 13 Wizard Run 0 Options --------- Layout 1 ASCII 0 Keyboard 0 Movement Arrows Keybinds 0 Fullscreen 1 Font 28/Dina Map View 50x43 Zoom Use 0% Tactical HUD 0 Map Filters NONE Filters NONE Steam X RUN: 934c430c-2981-4c6e-8b6f-dd8c975870c8